bitfinex/quotes_SOLUSD_20220218
["timestamp","ask_amount","ask_price","bid_price","bid_amount"]
[1645151993552,50.64879116,94.411,94.342,105.2]
[1645151994253,1.47962723,94.41,94.342,105.2]
[1645151994453,1.47962723,94.414,94.343,2.63428653]
[1645151994656,1.47962723,94.413,94.342,105.2]
[1645151995257,49.75783516,94.412,94.342,105.2]
[1645151996259,1.47962723,94.411,94.342,105.2]
[1645151996455,15.8977,94.41,94.342,105.2]
[1645151996657,17.37732723,94.41,94.342,105.2]
[1645151997455,15.8977,94.41,94.342,105.2]
[1645151999161,1.47962723,94.409,94.342,105.2]
[1645151999361,1.47962723,94.408,94.342,105.2]
[1645151999660,1.47962723,94.409,94.342,105.2]
[1645152000063,17.37732723,94.41,94.342,105.2]
[1645152001362,5.297,94.409,94.342,105.2]
[1645152001563,1.47962723,94.408,94.342,105.2]
[1645152001762,15.899,94.4,94.342,105.2]
[1645152001964,15.899,94.4,94.331,47.7121]
[1645152002165,5.298,94.399,94.33,31.8007]
[1645152002366,5.298,94.399,94.28,191.0]
[1645152002367,1.47962723,94.399,94.273,5.53319158]
[1645152002564,1.47962723,94.399,94.25,191.0]
[1645152002565,1.47962723,94.38,94.283,48.5232]
[1645152002769,1.47962723,94.377,94.283,48.5232]
[1645152003065,1.47962723,94.376,94.285,105.2]
[1645152003268,1.47962723,94.375,94.285,105.2]
[1645152003466,5.3,94.374,94.285,105.2]
[1645152003867,5.3,94.377,94.285,105.2]
[1645152004064,6.77962723,94.377,94.285,105.2]
[1645152004469,15.907,94.36,94.291,105.2]
[1645152004764,5.3,94.359,94.291,105.2]
[1645152004967,6.77962723,94.376,94.291,105.2]
[1645152005163,1.47962723,94.375,94.291,105.2]
[1645152005364,5.3,94.374,94.291,105.2]
[1645152005765,6.77962723,94.377,94.291,105.2]
[1645152005967,5.3,94.377,94.291,105.2]
[1645152006166,7.93428653,94.377,94.291,105.2]
[1645152006465,15.9077,94.35,94.291,105.2]
[1645152008871,15.9066,94.36,94.291,105.2]
[1645152009074,5.3,94.359,94.291,105.2]
[1645152009685,5.3,94.359,94.285,105.2]
[1645152010072,15.9079,94.35,94.285,105.2]
[1645152010772,15.9079,94.35,94.284,50.94865851]
[1645152010773,5.3,94.376,94.291,105.2]
[1645152010973,5.301,94.384,94.291,105.2]
[1645152011175,15.9034,94.38,94.311,105.2]
[1645152011372,5.3,94.387,94.311,105.2]
[1645152011575,341.53872357,94.388,94.311,105.2]
[1645152011782,341.53872357,94.388,94.314,105.2]
[1645152012197,341.53872357,94.388,94.315,2.63428653]
[1645152013196,341.53872357,94.388,94.314,105.2]
[1645152013396,341.53872357,94.388,94.321,105.2]
[1645152013996,341.53872357,94.388,94.313,12.86523697]
[1645152013997,341.53872357,94.388,94.314,105.2]
[1645152014199,5.299,94.387,94.314,105.2]
[1645152014397,341.53872357,94.388,94.321,105.2]
[1645152015499,341.53872357,94.388,94.321,104.7]
[1645152016036,341.53872357,94.388,94.331,104.7]
[1645152016407,6.77762723,94.414,94.331,104.7]
[1645152016600,1.47962723,94.421,94.331,104.7]
[1645152016800,1.47962723,94.42,94.333,104.7]
[1645152016999,6.77662723,94.42,94.333,104.7]
[1645152017201,1.47962723,94.422,94.333,104.7]
[1645152017401,1.47962723,94.429,94.333,104.7]
[1645152017705,1.47962723,94.428,94.341,104.7]
[1645152017903,1.47962723,94.429,94.351,104.7]
[1645152018155,50.48888285,94.427,94.353,104.7]
[1645152018702,50.48888285,94.427,94.371,104.7]
[1645152018905,50.48888285,94.427,94.371,105.2]
[1645152019102,50.48888285,94.427,94.37,15.8936]
[1645152020513,51.96851008,94.427,94.37,15.8936]
[1645152020711,51.96851008,94.427,94.371,105.2]
[1645152021111,15.8961,94.42,94.36,15.8961]
[1645152021310,15.8961,94.42,94.34,15.28]
[1645152021514,6.77662723,94.419,94.34,15.28]
[1645152021711,1.47962723,94.412,94.332,23.2655]
[1645152021915,1.47962723,94.405,94.332,23.2655]
[1645152022118,1.47962723,94.405,94.334,105.2]
[1645152022339,1.47962723,94.406,94.334,105.2]
[1645152022513,1.47962723,94.403,94.341,105.2]
[1645152022711,1.47962723,94.406,94.341,105.2]
[1645152023311,1.47962723,94.407,94.341,105.2]
[1645152023512,1.47962723,94.407,94.351,105.2]
[1645152023711,1.47962723,94.408,94.351,105.2]
[1645152024815,409.00589686,94.27,94.151,0.418789]
[1645152025015,409.00589686,94.27,94.03,30.0506381]
[1645152025016,22.0,94.171,94.03,30.0506381]
[1645152025216,13.1,94.162,94.117,0.0030566]
[1645152025414,5.52,94.158,94.117,0.0030566]
[1645152025616,15.28,94.16,94.117,0.0030566]
[1645152025617,5.52,94.128,94.117,0.0030566]
[1645152025818,0.02,94.105,94.084,0.009743]
[1645152026016,191.0,94.09,94.057,133.42637457]
[1645152026216,191.0,94.07,94.036,0.0081649]
[1645152026416,191.0,94.05,94.036,0.0081649]
[1645152026661,206.28,94.05,93.867,16.2402]
[1645152026816,191.0,94.02,93.898,16.0705]
[1645152027016,15.28,94.01,93.99,43.64937371]
[1645152027215,15.28,94.01,93.898,16.0705]
[1645152027615,15.28,94.01,93.896,15.967]
[1645152028017,15.28,94.01,93.989,0.8293907]
[1645152029222,191.0,94.04,93.989,0.8293907]
[1645152029520,15.28,94.03,93.989,0.8293907]
[1645152029721,15.28,94.06,93.989,0.8293907]
[1645152030720,15.28,94.1,93.989,0.8293907]
[1645152030945,15.28,94.1,93.99,2.63428653]
[1645152033525,5.316,94.099,93.99,2.63428653]
[1645152033926,5.316,94.099,93.99,1.63428653]
[1645152034126,5.316,94.099,93.989,0.8293907]
[1645152034930,5.316,94.099,93.99,2.63428653]
[1645152035230,15.28,94.1,93.99,2.63428653]
[1645152036343,15.28,94.1,93.989,0.8293907]
[1645152036542,5.316,94.099,93.989,0.8293907]
[1645152038244,5.316,94.099,93.99,2.63428653]
[1645152038669,5.316,94.104,93.99,2.63428653]
[1645152039368,5.316,94.104,93.989,0.8293907]
[1645152039571,5.316,94.104,93.978,0.0036344]
[1645152039572,30.0,94.103,93.978,0.0036344]
[1645152039777,30.0,94.103,93.798,0.0093907]
[1645152039778,30.26537123,93.907,93.798,0.0093907]
[1645152039970,11.13133166,93.852,93.808,0.0062798]
[1645152040172,5.52,93.807,93.77,0.006078]
[1645152040370,14.94642069,93.851,93.72,0.4298639]
[1645152040371,172.58,93.8,93.72,0.4298639]
[1645152040572,159.8,93.74,93.606,1.05168664]
[1645152040772,159.8,93.67,93.606,1.5851874]
[1645152040969,5.82183124,93.739,93.606,0.0048084]
[1645152040970,159.8,93.63,93.606,0.0048084]
[1645152041170,5.52,93.617,93.591,0.050273]
[1645152041371,159.8,93.6,93.591,0.000273]
[1645152041569,5.52,93.597,93.578,0.001092]
[1645152041777,10.56556213,93.599,93.53,0.402184]
[1645152041778,159.8,93.59,93.53,0.402184]
[1645152041971,159.8,93.54,93.53,0.002184]
[1645152042172,159.8,93.54,93.491,40.52512237]
[1645152042173,5.82183124,93.539,93.491,40.52512237]
[1645152042369,5.82183124,93.539,93.427,0.5128761]
[1645152042370,5.52,93.537,93.427,0.5128761]
[1645152042569,11.16683124,93.539,93.427,0.5128761]
[1645152042570,5.52,93.517,93.427,0.5128761]
[1645152042815,125.15725175,93.5,93.427,0.5128761]
[1645152042970,5.52,93.547,93.427,0.5128761]
[1645152043174,1.33067794,93.54,93.427,0.5128761]
[1645152043372,12.78,93.54,93.429,5.61578474]
[1645152043572,5.0,93.587,93.429,5.61578474]
[1645152043771,12.78,93.58,93.429,5.61578474]
[1645152043972,12.78,93.6,93.456,10.34376671]
[1645152044175,5.0,93.687,93.465,4.18664]
[1645152044372,5.0,93.677,93.466,5.54608097]
[1645152044574,12.78,93.67,93.476,4.18614]
[1645152044775,12.78,93.67,93.49,12.78]
[1645152044973,5.0,93.667,93.491,4.18547]
[1645152045175,5.0,93.667,93.492,4.84962543]
[1645152045375,5.343,93.666,93.494,4.18534]
[1645152045574,5.343,93.666,93.495,8.33424945]
[1645152045773,5.343,93.666,93.511,1.48143959]
[1645152046010,5.343,93.666,93.512,4.18453]
[1645152046179,5.343,93.666,93.513,4.96264342]
[1645152046475,5.343,93.666,93.515,4.83863032]
[1645152046674,5.341,93.676,93.52,12.78]
[1645152046874,12.78,93.7,93.521,109.38413]
[1645152047076,99.0495,93.77,93.521,109.38413]
[1645152047077,12.78,93.76,93.551,105.72]
[1645152047278,1.32,93.74,93.564,4.18221]
[1645152047478,5.42,93.767,93.57,12.78]
[1645152047479,5.339,93.759,93.57,12.78]
[1645152047678,0.42,93.757,93.571,8.82092139]
[1645152047878,5.42,93.757,93.572,7.19010161]
[1645152048110,5.338,93.756,93.573,5.48613417]
[1645152048280,1.32,93.75,93.572,18.38821903]
[1645152048479,41.37932864,93.736,93.572,7.19010161]
[1645152048678,5.338,93.735,93.573,5.09522251]
[1645152048980,5.338,93.735,93.574,4.26185047]
[1645152049276,5.338,93.735,93.575,15.60509478]
[1645152049478,5.338,93.735,93.59,12.78]
[1645152049678,5.338,93.736,93.591,4.66825103]
[1645152049882,12.78,93.78,93.591,15.86636845]
[1645152049883,5.337,93.759,93.591,15.86636845]
[1645152050080,14.1,93.78,93.591,15.86636845]
[1645152050081,5.337,93.749,93.592,4.01376438]
[1645152050280,5.42,93.777,93.592,15.2118818]
[1645152050479,5.337,93.748,93.593,7.71001469]
[1645152050677,40.06317356,93.749,93.594,4.86005041]
[1645152050877,5.42,93.747,93.593,2.62558743]
[1645152051078,52.97581918,93.726,93.593,2.62558743]
[1645152051302,5.42,93.737,93.593,2.62558743]
[1645152051480,5.338,93.725,93.593,2.62558743]
[1645152051682,5.337,93.746,93.594,5.24605519]
[1645152051880,5.338,93.724,93.594,5.24605519]
[1645152052083,5.337,93.749,93.595,11.19811742]
[1645152052278,50.05792904,93.748,93.596,67.08511132]
[1645152052481,5.337,93.747,93.611,105.2]
[1645152052680,5.337,93.748,93.612,4.44137636]
[1645152052882,5.337,93.749,93.631,105.2]
[1645152053079,5.337,93.749,93.619,63.0]
[1645152053080,5.337,93.763,93.641,105.2]
[1645152053279,5.337,93.816,93.651,105.2]
[1645152053487,5.336,93.762,93.653,105.2]
[1645152053685,5.333,93.816,93.653,105.2]
[1645152053886,5.335,93.768,93.653,105.2]
[1645152054088,5.333,93.816,93.653,105.2]
[1645152054686,52.40027433,93.815,93.661,105.2]
[1645152054888,5.333,93.814,93.672,2.62558743]
[1645152055089,5.333,93.814,93.673,83.97658881]
[1645152055288,5.333,93.814,93.674,4.76814833]
[1645152055688,5.333,93.814,93.675,83.97658881]
[1645152055887,5.333,93.814,93.677,83.97658881]
[1645152056088,5.333,93.814,93.693,83.97658881]
[1645152056289,5.333,93.814,93.701,83.97658881]
[1645152057091,5.333,93.814,93.712,2.62558743]
[1645152061598,5.332,93.839,93.712,2.62558743]
[1645152062398,39.16248294,93.838,93.714,105.2]
[1645152062595,5.331,93.837,93.716,105.2]
[1645152062794,5.331,93.838,93.731,105.2]
[1645152062997,5.331,93.836,93.741,105.2]
[1645152063195,5.331,93.837,93.751,105.2]
[1645152063394,5.331,93.835,93.761,105.2]
[1645152063596,5.33,93.836,93.761,105.2]
[1645152063797,551.99050125,93.84,93.763,105.2]
[1645152064696,5.33,93.894,93.763,105.2]
[1645152064896,55.3216894,93.893,93.763,105.2]
[1645152065096,5.328,93.892,93.763,105.2]
[1645152065896,5.328,93.892,93.763,116.9758952]
[1645152066298,5.328,93.892,93.764,4.85292506]
[1645152066698,5.328,93.892,93.766,5.18372983]
[1645152066898,5.328,93.892,93.781,91.07727712]
[1645152067133,5.328,93.892,93.791,91.07727712]
[1645152067298,5.328,93.892,93.801,91.07727712]
[1645152067499,5.328,93.892,93.803,91.07727712]
[1645152068600,5.327,93.894,93.803,91.07727712]
[1645152069401,38.77396353,93.893,93.803,91.07727712]
[1645152069601,38.77396353,93.893,93.8,12.78]
[1645152069802,5.327,93.892,93.8,12.78]
[1645152070407,5.327,93.892,93.78,12.78]
[1645152070606,5.327,93.892,93.781,9.86223833]
[1645152070805,6.80662723,93.892,93.781,9.86223833]
[1645152071003,6.80662723,93.892,93.781,14.9674851]
[1645152071004,5.327,93.892,93.781,14.9674851]
[1645152071206,5.327,93.892,93.781,26.7433803]
[1645152071604,5.327,93.892,93.782,105.2]
[1645152073708,1.47962723,93.887,93.782,105.2]
[1645152073907,1.47962723,93.884,93.782,105.2]
[1645152074316,5.328,93.883,93.782,105.2]
[1645152074602,1.47962723,93.878,93.782,105.2]
[1645152074715,1.47962723,93.877,93.782,105.2]
[1645152074913,1.47962723,93.867,93.771,105.2]
[1645152075115,1.47962723,93.859,93.771,105.2]
[1645152075313,1.47962723,93.862,93.771,105.2]
[1645152075715,1.47962723,93.851,93.766,105.2]
[1645152076014,1.47962723,93.848,93.766,105.2]
[1645152076411,5.42,93.868,93.766,105.2]
[1645152076412,47.31842098,93.84,93.766,105.2]
[1645152076616,1.47962723,93.84,93.766,105.2]
[1645152076815,5.33,93.846,93.766,105.2]
[1645152077014,1.47962723,93.856,93.766,105.2]
[1645152077216,1.47962723,93.859,93.771,105.2]
[1645152077615,1.47962723,93.856,93.765,9.3261404]
[1645152077815,53.99816328,93.858,93.722,114.0852]
[1645152077816,1.47962723,93.839,93.722,114.0852]
[1645152078015,60.14874084,93.858,93.681,97.46308582]
[1645152078016,1.47962723,93.822,93.681,93.4482]
[1645152078224,1.47962723,93.822,93.681,28.52130164]
[1645152078418,1.47962723,93.815,93.681,22.9415]
[1645152078615,12.78,93.85,93.681,22.9415]
[1645152078616,1.47962723,93.806,93.692,105.2]
[1645152078816,1.47962723,93.805,93.7,105.2]
[1645152079017,1.47962723,93.804,93.701,4.5217206]
[1645152079217,5.333,93.803,93.701,4.5217206]
[1645152079415,1.47962723,93.811,93.701,4.5217206]
[1645152079618,1.47962723,93.808,93.701,4.5217206]
[1645152079843,1.47962723,93.81,93.711,105.2]
[1645152080043,5.333,93.807,93.711,105.2]
[1645152080245,5.332,93.809,93.711,105.2]
[1645152080445,6.81162723,93.81,93.711,105.2]
[1645152080645,1.47962723,93.804,93.711,105.2]
[1645152080873,1.47962723,93.796,93.711,105.2]
[1645152081247,5.333,93.795,93.711,105.2]
[1645152081549,1.47962723,93.793,93.711,105.2]
[1645152081747,1.47962723,93.792,93.711,105.2]
[1645152081948,1.47962723,93.8,93.711,105.2]
[1645152082150,1.47962723,93.801,93.711,105.2]
[1645152082348,1.47962723,93.801,93.711,109.9469682]
[1645152082548,0.42,93.847,93.7,12.78]
[1645152082549,1.47962723,93.799,93.719,105.2]
[1645152082752,1.47962723,93.802,93.721,105.2]
[1645152082949,1.47962723,93.802,93.721,110.37592186]
[1645152083150,1.47962723,93.802,93.721,105.2]
[1645152083352,1.47962723,93.808,93.721,105.2]
[1645152083550,1.47962723,93.805,93.721,105.2]
[1645152083949,1.47962723,93.802,93.721,105.2]
[1645152084353,1.47962723,93.801,93.721,105.2]
[1645152084652,1.47962723,93.804,93.725,105.2]
[1645152084950,1.47962723,93.835,93.739,105.2]
[1645152085153,1.47962723,93.846,93.751,105.2]
[1645152085353,1.47962723,93.85,93.761,105.2]
[1645152085553,1.47962723,93.849,93.761,105.2]
[1645152085753,1.47962723,93.85,93.761,105.2]
[1645152086558,50.82032872,93.848,93.761,105.2]
[1645152086756,52.29995595,93.848,93.761,105.2]
[1645152087057,1.47962723,93.849,93.761,105.2]
[1645152087255,1.47962723,93.85,93.761,105.2]
[1645152087859,1.47962723,93.849,93.768,63.0]
[1645152088058,1.47962723,93.855,93.781,105.2]
[1645152088260,1.47962723,93.867,93.781,105.2]
[1645152088658,1.47962723,93.865,93.781,105.2]
[1645152088858,53.45911206,93.854,93.781,105.2]
[1645152089159,1.47962723,93.852,93.781,105.2]
[1645152089360,1.47962723,93.855,93.781,105.2]
[1645152089558,1.47962723,93.853,93.781,105.2]
[1645152089765,1.47962723,93.854,93.781,105.2]
[1645152089966,1.47962723,93.853,93.781,105.2]
[1645152090159,1.47962723,93.851,93.781,105.2]
[1645152090558,1.47962723,93.85,93.781,105.2]
[1645152091159,1.47962723,93.857,93.781,105.2]
[1645152091360,1.47962723,93.858,93.781,105.2]
[1645152091760,1.47962723,93.861,93.801,1.2800329]
[1645152091964,1.47962723,93.86,93.802,2.78220902]
[1645152092362,1.47962723,93.861,93.839,1.2800329]
[1645152092562,1.47962723,93.862,93.839,1.2800329]
[1645152092771,1.47962723,93.86,93.839,1.2800329]
[1645152092966,0.47962723,93.86,93.839,1.2800329]
[1645152093164,5.327,93.886,93.839,1.2800329]
[1645152093366,5.327,93.877,93.839,1.2800329]
[1645152093567,5.325,93.888,93.839,1.2800329]
[1645152093763,5.325,93.884,93.839,1.2800329]
[1645152093964,5.325,93.89,93.839,1.2800329]
[1645152094163,5.325,93.886,93.839,1.2800329]
[1645152094363,57.18194128,93.889,93.839,1.2800329]
[1645152094564,6.05766009,93.885,93.839,1.2800329]
[1645152094865,51.12428119,93.889,93.839,1.2800329]
[1645152094866,5.325,93.884,93.839,1.2800329]
[1645152095067,5.325,93.887,93.839,1.2800329]
[1645152095266,5.325,93.888,93.839,1.2800329]
[1645152095665,5.325,93.888,93.82,105.2]
[1645152096867,5.325,93.888,93.822,105.2]
[1645152098492,5.327,93.894,93.822,105.2]
[1645152099873,456.01773954,93.898,93.822,105.2]
[1645152101673,456.01773954,93.898,93.84,1.2800329]
[1645152102476,455.1980993,93.898,93.884,1.2800329]
[1645152105179,455.1980993,93.898,93.821,9.84813397]
[1645152105180,455.1980993,93.898,93.83,12.78]
[1645152105379,5.325,93.897,93.79,12.78]
[1645152105580,5.325,93.897,93.787,15.7506]
[1645152105880,25.70190709,93.897,93.787,15.7506]
[1645152106180,54.12018579,93.896,93.788,7.54676334]
[1645152106379,5.328,93.895,93.788,112.74676334]
[1645152106584,25.70490709,93.895,93.788,112.74676334]
[1645152106881,20.37690709,93.894,93.788,112.74676334]
[1645152107080,5.328,93.893,93.788,112.74676334]
[1645152107481,25.70490709,93.893,93.788,112.74676334]
[1645152107683,20.37690709,93.893,93.788,112.74676334]
[1645152107884,5.328,93.892,93.788,112.74676334]
[1645152108289,20.37690709,93.891,93.788,112.74676334]
[1645152108685,5.328,93.89,93.788,112.74676334]
[1645152109287,25.70490709,93.89,93.788,112.74676334]
[1645152109489,20.37690709,93.89,93.788,112.74676334]
[1645152110888,5.328,93.889,93.788,112.74676334]
[1645152112994,20.37690709,93.888,93.788,112.74676334]
[1645152113432,5.328,93.887,93.788,112.74676334]
[1645152115610,5.328,93.887,93.775,105.2]
[1645152115611,15.9908,93.88,93.775,105.2]
[1645152116011,20.37690709,93.879,93.775,105.2]
[1645152116211,25.70490709,93.879,93.775,105.2]
[1645152116653,38.9709664,93.878,93.777,105.2]
[1645152116813,5.328,93.877,93.777,105.2]
[1645152117311,15.9922,93.87,93.777,105.2]
[1645152117512,5.329,93.869,93.777,105.2]
[1645152119214,5.329,93.877,93.777,105.2]
[1645152121619,15.9918,93.87,93.777,105.2]
[1645152121819,5.329,93.869,93.777,105.2]
[1645152123422,5.329,93.869,93.776,8.16843999]
[1645152123423,5.329,93.896,93.861,1.2849791]
[1645152123628,5.329,93.897,93.861,1.2849791]
[1645152124023,42.77817537,93.896,93.861,1.2849791]
[1645152124224,5.325,93.894,93.861,1.2849791]
[1645152125428,15.9879,93.89,93.861,1.2849791]
[1645152125634,5.325,93.889,93.861,1.2849791]
[1645152129135,5.325,93.897,93.861,1.2849791]
[1645152129338,5.325,93.908,93.861,1.2849791]
[1645152129736,6.05770682,93.907,93.861,1.2849791]
[1645152129942,5.325,93.906,93.861,1.2849791]
[1645152130137,6.05770682,93.905,93.861,1.2849791]
[1645152130336,5.325,93.904,93.861,1.2849791]
[1645152130653,6.05770682,93.903,93.861,1.2849791]
[1645152130839,15.9856,93.9,93.861,1.2849791]
[1645152131048,5.325,93.899,93.861,1.2849791]
[1645152131238,6.05784609,93.898,93.861,1.2849791]
[1645152131442,5.325,93.897,93.861,1.2849791]
[1645152131639,5.325,93.898,93.861,1.2849791]
[1645152131853,5.325,93.907,93.861,1.2849791]
[1645152132144,6.0573167,93.906,93.861,1.2849791]
[1645152132343,5.325,93.905,93.861,1.2849791]
[1645152132544,5.325,93.906,93.861,1.2849791]
[1645152132740,5.325,93.907,93.861,1.2849791]
[1645152133743,5.325,93.908,93.861,1.2849791]
[1645152139291,5.325,93.916,93.861,1.2849791]
[1645152139454,5.325,93.919,93.861,1.2849791]
[1645152140273,0.02023984,93.895,93.861,1.2849791]
[1645152142475,6.41933443,93.932,93.871,105.2]
[1645152142673,0.04577628,93.962,93.873,105.2]
[1645152142974,0.04577628,93.962,93.883,105.2]
[1645152143173,0.04577628,93.962,93.891,105.2]
[1645152144574,0.04577628,93.962,93.891,121.3982]
[1645152149379,0.04577628,93.962,93.882,7.23871497]
[1645152149577,5.323,93.961,93.882,7.23871497]
[1645152149777,53.37222352,93.96,93.882,7.23871497]
[1645152149978,5.323,93.959,93.882,7.23871497]
[1645152150394,5.323,93.959,93.85,12.78]
[1645152150583,15.9772,93.95,93.84,12.78]
[1645152150779,5.324,93.949,93.84,12.78]
[1645152151179,5.324,93.959,93.84,12.78]
[1645152151380,5.324,93.959,93.863,105.2]
[1645152151582,15.9801,93.93,93.863,105.2]
[1645152151780,48.5016836,93.929,93.863,105.2]
[1645152152025,4.0400209,93.928,93.863,105.2]
[1645152152780,5.325,93.929,93.863,105.2]
[1645152153581,15.9777,93.94,93.863,105.2]
[1645152154281,5.324,93.952,93.863,105.2]
[1645152154786,15.9764,93.95,93.863,105.2]
[1645152154983,5.324,93.949,93.863,105.2]
[1645152155194,5.324,93.951,93.871,105.2]
[1645152155384,5.324,93.948,93.871,105.2]
[1645152155584,5.323,93.959,93.871,105.2]
[1645152155787,5.323,93.96,93.871,105.2]
[1645152156185,38.94125331,93.959,93.871,105.2]
[1645152156389,15.9762,93.95,93.84,12.78]
[1645152156590,5.325,93.949,93.841,23.0902]
[1645152156790,105.2,93.948,93.841,23.0902]
[1645152156997,105.2,93.946,93.841,23.0902]
[1645152157389,15.9846,93.92,93.813,7.28354362]
[1645152157588,105.2,93.918,93.813,7.28354362]
[1645152157791,5.325,93.917,93.813,7.28354362]
[1645152157991,105.2,93.917,93.813,7.28354362]
[1645152158190,5.325,93.916,93.813,7.28354362]
[1645152158392,5.325,93.918,93.813,7.28354362]
[1645152158590,15.9886,93.89,93.813,7.28354362]
[1645152158792,5.327,93.889,93.813,7.28354362]
[1645152159190,5.327,93.89,93.813,7.28354362]
[1645152159590,15.9888,93.88,93.813,7.28354362]
[1645152161792,15.9888,93.88,93.814,105.2]
[1645152162196,15.9866,93.89,93.814,105.2]
[1645152162601,5.327,93.889,93.814,105.2]
[1645152162796,5.325,93.919,93.814,105.2]
[1645152164297,15.9832,93.91,93.82,15.9843]
[1645152164497,15.9832,93.91,93.821,105.2]
[1645152165598,15.9832,93.91,93.831,105.2]
[1645152165800,15.9809,93.93,93.831,105.2]
[1645152166228,5.325,93.929,93.831,105.2]
[1645152166424,44.11308008,93.929,93.832,1.8710365]
[1645152167026,5.325,93.929,93.832,1.8710365]
[1645152167230,5.325,93.929,93.84,15.9809]
[1645152167425,15.9798,93.93,93.841,105.2]
[1645152167628,15.9798,93.93,93.841,107.83428653]
[1645152168027,15.9798,93.93,93.842,2.63428653]
[1645152168430,15.9798,93.93,93.851,105.2]
[1645152168627,15.9798,93.93,93.853,105.2]
[1645152169027,45.22616729,93.929,93.853,105.2]
[1645152169627,45.22616729,93.929,93.852,6.84417347]
[1645152170029,45.22616729,93.929,93.853,105.2]
[1645152170628,5.325,93.949,93.853,105.2]
[1645152170830,15.9778,93.94,93.853,105.2]
[1645152171636,42.64987479,93.939,93.853,105.2]
[1645152172331,15.9794,93.93,93.852,6.84417347]
[1645152172733,15.9794,93.93,93.92,1.2903153]
[1645152172932,3.03219997,93.929,93.92,1.2903153]
[1645152173133,1.66540854,93.916,93.847,120.8499]
[1645152173336,1.66540854,93.916,93.85,15.979]
[1645152174133,1.66540854,93.916,93.851,105.2]
[1645152175034,1.66540854,93.916,93.853,105.2]
[1645152176137,1.66540854,93.916,93.852,6.48688704]
[1645152177036,1.66540854,93.916,93.853,105.2]
[1645152178338,1.66540854,93.916,93.861,105.2]
[1645152181740,1.66540854,93.916,93.862,2.63428653]
[1645152181943,1.66540854,93.916,93.861,105.2]
[1645152184046,1.66540854,93.916,93.871,105.2]
[1645152184450,1.66540854,93.916,93.872,2.63428653]
[1645152184846,1.66540854,93.916,93.873,2.66769308]
[1645152185146,1.66540854,93.916,93.881,105.2]
[1645152186848,1.66540854,93.916,93.893,105.2]
[1645152196862,1.66540854,93.916,93.891,105.2]
[1645152197061,1.66540854,93.916,93.886,105.2]
[1645152197865,1.66540854,93.916,93.887,9.03796596]
[1645152198269,1.66540854,93.916,93.891,105.2]
[1645152200087,1.66540854,93.916,93.901,105.2]
[1645152200686,15.9719,93.97,93.901,105.2]
[1645152200887,5.323,93.981,93.903,105.2]
[1645152201090,2.96122325,93.984,93.911,105.2]
[1645152201386,5.322,93.983,93.911,105.2]
[1645152201993,15.9708,93.98,93.911,105.2]
[1645152203091,2.96122325,94.001,93.922,1.3507799]
[1645152203491,2.96122325,94.001,93.923,2.63428653]
[1645152203690,2.96122325,94.017,93.925,105.2]
[1645152204092,2.96122325,94.017,93.927,105.2]
[1645152204298,15.9652,94.01,93.93,15.967]
[1645152204499,15.9652,94.01,93.931,105.2]
[1645152204792,15.9652,94.01,93.943,105.2]
[1645152205994,15.9652,94.01,93.95,15.9643]
[1645152206194,15.9661,94.0,93.926,16.3007]
[1645152206397,2.96122325,94.004,93.926,16.3007]
[1645152206596,44.53005985,93.996,93.926,16.3007]
[1645152206995,8.28322325,93.995,93.926,16.3007]